fUST/lending_fUST_20250821
["ID","MTS","AMOUNT","RATE_DAILY","PERIOD"]
[380423069,1755755443369,-1223.6,0.00021917,3]
[380423071,1755755443379,-480.0,0.00021917,3]
[380423073,1755755443388,-480.0,0.00021917,3]
[380423074,1755755443397,-480.0,0.00021917,3]
[380423075,1755755443407,-480.0,0.00021917,3]
[380423076,1755755443417,-5090.19,0.00021917,3]
[380423077,1755755443427,-480.0,0.00021917,3]
[380423078,1755755443436,-409.29638998,0.00021917,3]
[380423079,1755755443446,-480.0,0.00021917,3]
[380423080,1755755443455,-480.0,0.00021917,3]
[380423081,1755755443464,-151.0,0.00021917,2]
[380423082,1755755443474,-480.0,0.00021917,3]
[380423083,1755755443483,-480.0,0.00021917,3]
[380423084,1755755443493,-480.0,0.00021917,3]
[380423085,1755755443502,-442.57493948,0.00021917,3]
[380423086,1755755443512,-408.73799747,0.00021917,3]
[380423087,1755755443521,-480.0,0.00021917,3]
[380423088,1755755443530,-480.0,0.00021917,3]
[380423089,1755755443539,-1636.43,0.00021917,3]
[380423091,1755755443549,-480.0,0.00021917,3]
[380423093,1755755443558,-1651.35,0.00021917,3]
[380423095,1755755443567,-480.0,0.00021917,3]
[380423097,1755755443576,-480.0,0.00021917,3]
[380423099,1755755443585,-480.0,0.00021917,3]
[380423101,1755755443594,-1600.71,0.00021917,3]
[380423103,1755755443604,-151.0,0.00021917,2]
[380423105,1755755443613,-480.0,0.00021917,3]
[380423107,1755755443623,-151.0,0.00021917,2]
[380423109,1755755443633,-858.34,0.00021917,3]
[380423111,1755755443642,-480.0,0.00021917,3]
[380423113,1755755443653,-151.0,0.00021917,2]
[380423115,1755755443663,-666.5,0.00021917,3]
[380423117,1755755443673,-480.0,0.00021917,3]
[380423119,1755755443682,-480.0,0.00021917,3]
[380423121,1755755443691,-480.0,0.00021917,3]
[380423123,1755755443701,-193.938242,0.00021917,2]
[380423125,1755755443710,-480.0,0.00021917,3]
[380423127,1755755443721,-480.0,0.00021917,3]
[380423129,1755755443733,-154.345193,0.00021917,2]
[380423131,1755755443743,-480.0,0.00021917,3]
[380423133,1755755443753,-5436.13,0.00021917,3]
[380423135,1755755443762,-987.13,0.00021917,3]
[380423157,1755755443959,-480.0,0.00021917,3]
[380423159,1755755443969,-480.0,0.00021917,3]
[380423161,1755755443979,-480.0,0.00021917,3]
[380423163,1755755443988,-480.0,0.00021917,3]
[380423165,1755755443998,-480.0,0.00021917,3]
[380423167,1755755444008,-480.0,0.00021917,3]
[380423169,1755755444018,-480.0,0.00021917,3]
[380423171,1755755444027,-480.0,0.00021917,3]
[380423173,1755755444036,-480.0,0.00021917,3]
[380423175,1755755444045,-556.17,0.00021917,3]
[380423177,1755755444055,-1298.25,0.00021917,3]
[380423179,1755755444064,-480.0,0.00021917,3]
[380423181,1755755444074,-480.0,0.00021917,3]
[380423183,1755755444084,-480.0,0.00021917,3]
[380423184,1755755444093,-480.0,0.00021917,3]
[380423187,1755755444102,-153.630477,0.00021917,2]
[380423189,1755755444112,-4081.23,0.00021917,3]
[380423190,1755755444121,-480.0,0.00021917,3]
[380423192,1755755444130,-661.03,0.00021917,3]
[380423194,1755755444140,-4649.69,0.00021917,3]
[380423196,1755755444149,-764.39,0.00021917,3]
[380423198,1755755444158,-151.0,0.00021917,2]
[380423200,1755755444168,-152.661076,0.00021917,2]
[380423202,1755755444177,-480.0,0.00021917,3]
[380423204,1755755444186,-646.25,0.00021917,3]
[380423206,1755755444196,-480.0,0.00021917,3]
[380423208,1755755444205,-480.0,0.00021917,3]
[380423210,1755755444215,-1607.72,0.00021917,3]
[380423212,1755755444224,-480.0,0.00021917,3]
[380423214,1755755444234,-587.15,0.00021917,3]
[380423216,1755755444243,-1033.88,0.00021917,3]
[380423218,1755755444253,-480.0,0.00021917,3]
[380423220,1755755444262,-480.0,0.00021917,3]
[380423222,1755755444273,-692.81,0.00021917,3]
[380423224,1755755444282,-151.0,0.00021917,2]
[380423226,1755755444292,-151.0,0.00021917,2]
[380423228,1755755444301,-480.0,0.00021917,3]
[380423230,1755755444311,-571.49,0.00021917,3]
[380423231,1755755444321,-1892.16,0.00021917,3]
[380423232,1755755444331,-480.0,0.00021917,3]
[380423233,1755755444340,-704.68,0.00021917,3]
[380423234,1755755444350,-480.0,0.00021917,2]
[380423235,1755755444359,-580.06,0.00021917,3]
[380423236,1755755444368,-2026.45,0.00021917,3]
[380423237,1755755444378,-638.71,0.00021917,3]
[380423238,1755755444388,-428.36185234,0.00021917,3]
[380423239,1755755444398,-1548.41,0.00021917,3]
[380423240,1755755444407,-463.55656892,0.00021917,3]
[380423241,1755755444418,-480.0,0.00021917,3]
[380423242,1755755444427,-876.69,0.00021917,3]
[380423243,1755755444437,-480.0,0.00021917,3]
[380423244,1755755444446,-151.0,0.00021917,2]
[380423245,1755755444456,-151.0,0.00021917,2]
[380423246,1755755444470,-913.08,0.00021917,3]
[380423247,1755755444479,-151.0,0.00021917,2]
[380423248,1755755444489,-2836.41,0.00021917,3]
[380423249,1755755444499,-480.0,0.00021917,3]
[380423250,1755755444509,-480.0,0.00021917,3]
[380423251,1755755444518,-480.18,0.00021917,3]
[380423252,1755755444527,-480.0,0.00021917,3]
[380423253,1755755444537,-480.0,0.00021917,3]
[380423254,1755755444549,-480.0,0.00021917,3]
[380423255,1755755444559,-480.0,0.00021917,3]
[380423256,1755755444568,-1260.5,0.00021917,3]
[380423257,1755755444578,-455.82563843,0.00021917,3]
[380423258,1755755444587,-480.0,0.00021917,3]
[380423259,1755755444597,-6867.1,0.00021917,3]
[380423260,1755755444606,-480.0,0.00021917,3]
[380423261,1755755444616,-480.0,0.00021917,3]
[380423262,1755755444625,-480.0,0.00021917,3]
[380423263,1755755444634,-480.0,0.00021917,3]
[380423264,1755755444644,-151.0,0.00021917,2]
[380423265,1755755444653,-480.0,0.00021917,3]
[380423266,1755755444664,-480.0,0.00021917,3]
[380423267,1755755444673,-151.0,0.00021917,2]
[380423268,1755755444683,-897.34,0.00021917,3]
[380423269,1755755444692,-2112.97,0.00021917,3]
[380423270,1755755444701,-480.0,0.00021917,3]
[380423271,1755755444711,-1849.27,0.00021917,3]
[380423272,1755755444721,-151.0,0.00021917,2]
[380423273,1755755444732,-480.0,0.00021917,3]
[380423274,1755755444741,-432.71717247,0.00021917,3]
[380423275,1755755444752,-301.004912,0.00021917,2]
[380423276,1755755444762,-480.0,0.00021917,3]
[380423277,1755755444771,-480.0,0.00021917,3]
[380423278,1755755444781,-967.56,0.00021917,3]
[380423279,1755755444790,-480.0,0.00021917,3]
[380423280,1755755444800,-3113.67,0.00021917,3]
[380423281,1755755444809,-151.0,0.00021917,2]
[380423282,1755755444819,-480.0,0.00021917,3]
[380423283,1755755444829,-480.0,0.00021917,3]
[380423284,1755755444839,-959.71,0.00021917,3]
[380423285,1755755444848,-480.0,0.00021917,3]
[380423286,1755755444858,-451.04422109,0.00021917,3]
[380423287,1755755444867,-480.0,0.00021917,3]
[380423288,1755755444877,-480.0,0.00021917,3]
[380423289,1755755444888,-480.0,0.00021917,3]
[380423290,1755755444898,-480.0,0.00021917,3]
[380423291,1755755444908,-521.76,0.00021917,3]
[380423292,1755755444917,-1373.53,0.00021917,3]
[380423293,1755755444927,-382.37892188,0.00021917,3]
[380423294,1755755444936,-480.0,0.00021917,3]
[380423295,1755755444945,-747.07,0.00021917,3]
[380423296,1755755444955,-2085.04,0.00021917,3]
[380423297,1755755444965,-480.0,0.00021917,3]
[380423298,1755755444975,-1394.07,0.00021917,3]
[380423299,1755755444984,-480.0,0.00021917,3]
[380423300,1755755444994,-480.0,0.00021917,3]
[380423301,1755755445003,-292.64197763,0.00021917,3]
[380423302,1755755445012,-480.0,0.00021917,3]
[380423303,1755755445022,-480.0,0.00021917,3]
[380423304,1755755445031,-480.0,0.00021917,3]
[380423305,1755755445040,-2621.27,0.00021917,3]
[380423306,1755755445051,-480.0,0.00021917,3]
[380423307,1755755445060,-480.0,0.00021917,3]
[380423308,1755755445069,-480.0,0.00021917,3]
[380423309,1755755445078,-5114.37,0.00021917,3]
[380423310,1755755445087,-480.0,0.00021917,3]
[380423311,1755755445096,-480.0,0.00021917,3]
[380423312,1755755445105,-2621.23,0.00021917,3]
[380423313,1755755445115,-229.89741189,0.00021917,3]
[380423314,1755755445124,-480.0,0.00021917,3]
[380423315,1755755445134,-480.0,0.00021917,2]
[380423316,1755755445143,-480.0,0.00021917,3]
[380423317,1755755445153,-480.0,0.00021917,3]
[380423318,1755755445162,-152.365118,0.00021917,2]
[380423319,1755755445171,-151.0,0.00021917,2]
[380423320,1755755445181,-509.8,0.00021917,3]
[380423321,1755755445191,-151.0,0.00021918,2]
[380423322,1755755445200,-376.00439007,0.00021952,2]
[380423323,1755755445211,-160.0,0.00021952,2]
[380423324,1755755445220,-160.0,0.00021952,2]
[380423325,1755755445229,-160.0,0.00021952,2]
[380423326,1755755445239,-216.95272161,0.00021952,2]
[380423327,1755755445250,-215.86710461,0.00021952,2]
[380423328,1755755445259,-232.28399145,0.00021952,2]
[380423329,1755755445269,-844.19128999,0.00021952,2]
[380423330,1755755445278,-160.0,0.00021952,2]
[380423331,1755755445287,-160.0,0.00021952,2]
[380423332,1755755445296,-160.0,0.00021952,2]
[380423333,1755755445306,-160.0,0.00021952,2]
[380423334,1755755445315,-500.0,0.00021973,2]
[380423335,1755755445325,-503.8681873,0.00021973,2]
[380423336,1755755445334,-500.0,0.00021973,2]
[380423337,1755755445343,-503.41705077,0.00021973,2]
[380423338,1755755445352,-354.05442532,0.00021973,2]
[380423339,1755755445362,-500.0,0.00021973,2]
[380423340,1755755445371,-500.0,0.00021973,2]
[380423341,1755755445381,-500.0,0.00021973,2]
[380423342,1755755445390,-500.0,0.00021973,2]
[380423343,1755755445399,-500.0,0.00021973,2]
[380423344,1755755445409,-500.0,0.00021973,2]
[380423345,1755755445418,-500.0,0.00021973,2]
[380423346,1755755445427,-500.0,0.00021973,2]
[380423347,1755755445437,-500.0,0.00021973,2]
[380423348,1755755445446,-281.02325921,0.00021973,2]
[380423349,1755755445455,-500.0,0.00021973,2]
[380423350,1755755445465,-500.0,0.00021973,2]
[380423351,1755755445474,-500.0,0.00021973,2]
[380423352,1755755445484,-500.0,0.00021973,2]
[380423353,1755755445493,-500.0,0.00021973,2]
[380423354,1755755445502,-500.0,0.00021973,2]
[380423355,1755755445511,-500.0,0.00021973,2]
[380423356,1755755445521,-207.35869563,0.00021973,2]
[380423357,1755755445530,-500.90420294,0.00021973,2]
[380423358,1755755445539,-500.0,0.00021973,2]
[380423359,1755755445549,-500.0,0.00021973,2]
[380423360,1755755445558,-500.0,0.00021973,2]
[380423361,1755755445567,-706.98,0.00022,7]
[380423362,1755755445576,-3250.68,0.00022,7]
[380423363,1755755445585,-15812.9,0.00022,2]
[380423364,1755755445595,-494.26723251,0.00022056,2]
[380423365,1755755445604,-391.82828244,0.00022076,2]
[380423366,1755755445613,-173.44867261,0.00022091,2]
[380423367,1755755445622,-332.77917563,0.00022121,2]
[380423368,1755755445631,-1000.0,0.00022121,2]
[380423369,1755755445640,-150.0,0.00022173,2]
[380423370,1755755445650,-506.50444455,0.00022173,2]
[380423371,1755755445659,-500.0,0.00022173,2]
[380423372,1755755445668,-500.0,0.00022173,2]
[380423373,1755755445677,-500.0,0.00022173,2]
[380423374,1755755445687,-500.0,0.00022191,3]
[380423375,1755755445695,-480.0,0.00022191,3]
[380423376,1755755445705,-480.0,0.00022191,3]
[380423377,1755755445714,-480.0,0.00022191,3]
[380423378,1755755445725,-527.95613671,0.00022191,3]
[380423379,1755755445735,-504.36855434,0.00022191,3]
[380423380,1755755445745,-656.47,0.00022191,3]
[380423381,1755755445754,-480.0,0.00022191,3]
[380423382,1755755445763,-362.90011587,0.00022191,3]
[380423383,1755755445773,-444.87256664,0.00022191,3]
[380423384,1755755445782,-403.41701561,0.00022191,3]
[380423385,1755755445791,-480.0,0.00022191,3]
[380423386,1755755445800,-480.0,0.00022191,3]
[380423387,1755755445809,-480.0,0.00022191,3]
[380423388,1755755445818,-480.0,0.00022191,3]
[380423389,1755755445828,-499.92886258,0.00022191,3]
[380423391,1755755445837,-480.0,0.00022191,3]
[380423392,1755755445846,-480.0,0.00022191,3]
[380423393,1755755445855,-480.0,0.00022191,3]
[380423394,1755755445865,-480.0,0.00022191,3]
[380423395,1755755445874,-480.0,0.00022191,3]
[380423396,1755755445883,-480.0,0.00022191,3]
[380423397,1755755445892,-460.0,0.00022191,3]
[380423398,1755755445902,-480.0,0.00022191,3]
[380423399,1755755445912,-480.0,0.00022191,3]
[380423400,1755755445922,-480.0,0.00022191,3]
[380423401,1755755445931,-480.0,0.00022191,3]
[380423402,1755755445941,-480.0,0.00022191,3]
[380423403,1755755445951,-365.38941581,0.00022191,3]
[380423404,1755755445961,-480.0,0.00022191,3]
[380423405,1755755445971,-454.98331377,0.00022191,3]
[380423406,1755755445980,-480.0,0.00022191,3]
[380423407,1755755445989,-480.0,0.00022191,3]
[380423408,1755755445998,-480.0,0.00022191,3]
[380423409,1755755446007,-480.0,0.00022191,3]
[380423410,1755755446016,-480.0,0.00022191,3]
[380423411,1755755446025,-480.0,0.00022191,3]
[380423412,1755755446034,-480.0,0.00022191,3]
[380423413,1755755446043,-235.31084868,0.00022191,3]
[380423414,1755755446052,-480.0,0.00022191,3]
[380423415,1755755446060,-480.0,0.00022191,3]
[380423416,1755755446069,-480.0,0.00022191,3]
[380423417,1755755446078,-480.0,0.00022191,3]
[380423418,1755755446087,-239.33855755,0.00022191,3]
[380423419,1755755446096,-480.0,0.00022191,3]
[380423420,1755755446105,-480.0,0.00022191,3]
[380423421,1755755446114,-480.0,0.00022191,3]
[380423422,1755755446123,-363.436215,0.00022191,3]
[380423423,1755755446133,-480.0,0.00022191,3]
[380423424,1755755446141,-480.0,0.00022191,3]
[380423425,1755755446150,-451.35779184,0.00022191,3]
[380423426,1755755446159,-990.52,0.00022191,3]
[380423427,1755755446169,-461.55293979,0.00022191,3]
[380423428,1755755446179,-530.51,0.00022191,3]
[380423429,1755755446187,-480.0,0.00022191,3]
[380423430,1755755446197,-445.94385173,0.00022191,3]
[380423431,1755755446206,-480.0,0.00022191,3]
[380423432,1755755446215,-480.0,0.00022191,3]
[380423433,1755755446224,-480.0,0.00022191,3]
[380423434,1755755446233,-368.59819994,0.00022191,3]
[380423435,1755755446288,-480.0,0.00022191,3]
[380423436,1755755446298,-480.0,0.00022191,3]
[380423437,1755755446307,-480.0,0.00022191,3]
[380423438,1755755446316,-460.0,0.00022191,3]
[380423439,1755755446325,-480.0,0.00022191,3]
[380423440,1755755446334,-480.0,0.00022191,3]
[380423441,1755755446342,-486.16,0.00022191,3]
[380423442,1755755446351,-480.0,0.00022191,3]
[380423443,1755755446360,-1397.58,0.00022191,3]
[380423444,1755755446369,-480.0,0.00022191,3]
[380423445,1755755446378,-1144.66,0.00022191,3]
[380423446,1755755446387,-791.07,0.00022191,3]
[380423447,1755755446396,-480.0,0.00022191,3]
[380423448,1755755446405,-480.0,0.00022191,3]
[380423449,1755755446414,-480.0,0.00022191,3]
[380423450,1755755446423,-463.35499212,0.00022191,3]
[380423451,1755755446432,-480.0,0.00022191,3]
[380423452,1755755446441,-480.0,0.00022191,3]
[380423453,1755755446451,-480.0,0.00022191,3]
[380423454,1755755446460,-480.0,0.00022191,3]
[380423455,1755755446469,-480.0,0.00022191,3]
[380423456,1755755446479,-808.14,0.00022191,3]
[380423457,1755755446488,-480.0,0.00022191,3]
[380423458,1755755446498,-480.0,0.00022191,3]
[380423459,1755755446506,-480.0,0.00022191,2]
[380423460,1755755446516,-394.88196855,0.00022191,3]
[380423461,1755755446525,-480.0,0.00022191,3]
[380423462,1755755446535,-480.0,0.00022191,3]
[380423463,1755755446544,-2404.19,0.00022191,3]
[380423464,1755755446553,-480.0,0.00022191,3]
[380423465,1755755446563,-537.91,0.00022191,3]
[380423466,1755755446572,-480.0,0.00022191,3]
[380423467,1755755446581,-545.38,0.00022191,3]
[380423468,1755755446591,-480.0,0.00022191,3]
[380423469,1755755446600,-480.0,0.00022191,3]
[380423470,1755755446612,-239.03965046,0.00022191,3]
[380423471,1755755446621,-480.0,0.00022191,3]
[380423472,1755755446630,-480.0,0.00022191,3]
[380423473,1755755446639,-1447.23,0.00022191,3]
[380423474,1755755446648,-480.0,0.00022191,3]
[380423475,1755755446657,-480.0,0.00022191,3]
[380423476,1755755446667,-482.27969462,0.00022191,3]
[380423477,1755755446676,-480.0,0.00022191,3]
[380423478,1755755446686,-480.0,0.00022191,3]
[380423479,1755755446695,-618.29,0.00022191,3]
[380423480,1755755446709,-480.0,0.00022191,3]
[380423481,1755755446719,-480.0,0.00022191,3]
[380423482,1755755446731,-480.0,0.00022191,3]
[380423483,1755755446741,-480.0,0.00022191,3]
[380423484,1755755446750,-480.0,0.00022191,3]
[380423485,1755755446760,-480.0,0.00022191,3]
[380423486,1755755446770,-480.0,0.00022191,3]
[380423487,1755755446780,-480.0,0.00022191,3]
[380423488,1755755446789,-480.0,0.00022191,3]
[380423489,1755755446799,-480.0,0.00022191,3]
[380423490,1755755446809,-480.0,0.00022191,3]
[380423491,1755755446818,-480.0,0.00022191,3]
[380423492,1755755446827,-480.0,0.00022191,3]
[380423493,1755755446836,-480.0,0.00022191,3]
[380423494,1755755446848,-480.0,0.00022191,3]
[380423495,1755755446858,-480.0,0.00022191,3]
[380423496,1755755446867,-480.89504877,0.00022191,3]
[380423497,1755755446876,-870.35,0.00022191,3]
[380423498,1755755446886,-480.0,0.00022191,3]
[380423499,1755755446895,-809.15,0.00022191,3]
[380423500,1755755446904,-480.0,0.00022191,3]
[380423501,1755755446913,-480.0,0.00022191,3]
[380423502,1755755446922,-448.10304059,0.00022191,3]
[380423503,1755755446932,-480.0,0.00022191,3]
[380423504,1755755446944,-480.0,0.00022191,3]
[380423505,1755755446956,-480.0,0.00022191,3]
[380423506,1755755446971,-480.0,0.00022191,3]
[380423507,1755755446981,-480.0,0.00022191,3]
[380423508,1755755446990,-722.49,0.00022191,3]
[380423509,1755755447000,-480.0,0.00022191,3]
[380423510,1755755447009,-480.0,0.00022191,3]
[380423511,1755755447019,-480.0,0.00022191,3]
[380423512,1755755447030,-480.0,0.00022191,3]
[380423513,1755755447039,-1204.42,0.00022191,3]
[380423514,1755755447048,-480.0,0.00022191,3]
[380423515,1755755447058,-480.0,0.00022191,3]
[380423516,1755755447067,-333.56644527,0.00022191,3]
[380423517,1755755447076,-480.0,0.00022191,3]
[380423518,1755755447085,-480.0,0.00022191,3]
[380423519,1755755447095,-480.0,0.00022191,3]
[380423520,1755755447104,-480.0,0.00022191,3]
[380423521,1755755447113,-480.0,0.00022191,3]
[380423522,1755755447123,-480.0,0.00022191,3]
[380423523,1755755447132,-368.72259093,0.00022191,3]
[380423524,1755755447141,-480.0,0.00022191,3]
[380423525,1755755447150,-480.0,0.00022191,3]
[380423526,1755755447159,-480.0,0.00022191,3]
[380423527,1755755447168,-480.0,0.00022191,3]
[380423528,1755755447177,-480.0,0.00022191,3]
[380423529,1755755447186,-1034.01,0.00022191,3]
[380423530,1755755447195,-480.0,0.00022191,3]
[380423531,1755755447204,-480.0,0.00022191,3]
[380423532,1755755447213,-1008.04,0.00022191,3]
[380423533,1755755447224,-480.0,0.00022191,3]
[380423534,1755755447233,-480.0,0.00022191,3]
[380423535,1755755447242,-480.0,0.00022191,3]
[380423536,1755755447252,-480.0,0.00022191,3]
[380423537,1755755447262,-480.0,0.00022191,3]
[380423538,1755755447271,-480.0,0.00022191,3]
[380423539,1755755447280,-480.0,0.00022191,3]
[380423540,1755755447289,-480.0,0.00022191,3]
[380423541,1755755447298,-409.31398676,0.00022191,3]
[380423542,1755755447307,-521.06,0.00022191,3]
[380423543,1755755447316,-480.0,0.00022191,3]
[380423544,1755755447325,-480.0,0.00022191,3]
[380423545,1755755447334,-877.6,0.00022191,3]
[380423546,1755755447343,-591.04,0.00022191,3]
[380423547,1755755447352,-2058.86,0.00022191,3]
[380423548,1755755447361,-480.0,0.00022191,3]
[380423549,1755755447371,-968.17,0.00022191,3]
[380423550,1755755447379,-480.0,0.00022191,3]
[380423551,1755755447389,-480.0,0.00022191,3]
[380423552,1755755447399,-480.0,0.00022191,3]
[380423553,1755755447408,-480.0,0.00022191,3]
[380423554,1755755447417,-767.23,0.00022191,3]
[380423555,1755755447426,-480.0,0.00022191,3]
[380423556,1755755447435,-679.28,0.00022191,3]
[380423557,1755755447445,-480.0,0.00022191,3]
[380423558,1755755447455,-480.0,0.00022191,3]
[380423559,1755755447464,-480.0,0.00022191,3]
[380423560,1755755447474,-480.0,0.00022191,3]
[380423561,1755755447485,-2077.9,0.00022191,3]
[380423562,1755755447494,-480.0,0.00022191,3]
[380423563,1755755447503,-422.01998779,0.00022191,3]
[380423564,1755755447512,-480.0,0.00022191,3]
[380423565,1755755447521,-480.0,0.00022191,3]
[380423566,1755755447530,-480.0,0.00022191,3]
[380423567,1755755447539,-480.0,0.00022191,3]
[380423568,1755755447548,-480.0,0.00022191,3]
[380423569,1755755447557,-480.0,0.00022191,3]
[380423570,1755755447566,-815.42,0.00022191,3]
[380423571,1755755447575,-590.15,0.00022191,3]
[380423572,1755755447585,-480.0,0.00022191,3]
[380423573,1755755447594,-540.5,0.00022191,3]
[380423574,1755755447603,-480.0,0.00022191,3]
[380423575,1755755447613,-738.43,0.00022191,3]
[380423576,1755755447622,-480.0,0.00022191,3]
[380423577,1755755447631,-480.0,0.00022191,3]
[380423578,1755755447639,-480.0,0.00022191,3]
[380423579,1755755447648,-480.0,0.00022191,3]
[380423580,1755755447657,-500.0,0.00022191,3]
[380423581,1755755447666,-480.0,0.00022191,3]
[380423582,1755755447675,-480.0,0.00022191,3]
[380423583,1755755447685,-480.0,0.00022191,3]
[380423585,1755755447694,-480.0,0.00022191,3]
[380423587,1755755447704,-480.0,0.00022191,3]
[380423589,1755755447713,-440.6740048,0.00022191,3]
[380423591,1755755447724,-480.0,0.00022191,3]
[380423593,1755755447735,-480.0,0.00022191,3]
[380423595,1755755447744,-480.0,0.00022191,3]
[380423597,1755755447753,-480.0,0.00022191,3]
[380423599,1755755447763,-480.0,0.00022191,3]
[380423601,1755755447774,-480.0,0.00022191,3]
[380423603,1755755447784,-653.6,0.00022191,3]
[380423605,1755755447793,-460.96332904,0.00022191,3]
[380423607,1755755447806,-184.92992818,0.00022191,3]
[380423609,1755755447816,-653.26,0.00022191,3]
[380423611,1755755447826,-480.0,0.00022191,3]
[380423613,1755755447836,-480.0,0.00022191,3]
[380423615,1755755447844,-480.0,0.00022191,3]
[380423616,1755755447853,-480.0,0.00022191,3]
[380423618,1755755447862,-480.0,0.00022191,3]
[380423620,1755755447873,-532.53,0.00022191,3]
[380423622,1755755447882,-480.0,0.00022191,3]
[380423624,1755755447891,-480.0,0.00022191,3]
[380423626,1755755447900,-480.0,0.00022191,3]
[380423628,1755755447909,-480.0,0.00022191,3]
[380423630,1755755447918,-480.0,0.00022191,3]
[380423632,1755755447927,-827.18,0.00022191,3]
[380423634,1755755447936,-480.0,0.00022191,3]
[380423636,1755755447945,-480.0,0.00022191,3]
[380423638,1755755447954,-480.0,0.00022191,3]
[380423640,1755755447963,-480.0,0.00022191,3]
[380423642,1755755447972,-480.0,0.00022191,3]
[380423644,1755755447981,-480.0,0.00022191,3]
[380423646,1755755447989,-480.0,0.00022191,3]
[380423648,1755755447999,-679.09,0.00022191,3]
[380423650,1755755448008,-480.0,0.00022191,3]
[380423652,1755755448016,-384.67132836,0.00022191,3]
[380423654,1755755448025,-480.0,0.00022191,3]
[380423656,1755755448034,-480.0,0.00022191,3]
[380423658,1755755448043,-1257.55,0.00022191,3]
[380423660,1755755448052,-480.0,0.00022191,3]
[380423661,1755755448061,-480.0,0.00022191,3]
[380423663,1755755448070,-480.0,0.00022191,3]
[380423665,1755755448079,-480.0,0.00022191,3]
[380423666,1755755448088,-480.0,0.00022191,3]
[380423667,1755755448098,-170.390249,0.00022191,3]
[380423668,1755755448107,-680.02,0.00022191,3]
[380423669,1755755448116,-779.54,0.00022191,3]
[380423670,1755755448125,-480.0,0.00022191,3]
[380423671,1755755448134,-233.89045515,0.00022191,3]
[380423672,1755755448144,-480.0,0.00022191,3]
[380423673,1755755448154,-480.0,0.00022191,3]
[380423674,1755755448163,-480.0,0.00022191,3]
[380423675,1755755448177,-602.09,0.00022191,3]
[380423676,1755755448197,-480.0,0.00022191,3]
[380423677,1755755448207,-529.32,0.00022191,3]
[380423678,1755755448216,-905.49,0.00022191,3]
[380423679,1755755448225,-480.0,0.00022191,3]
[380423680,1755755448234,-892.06,0.00022191,3]
[380423681,1755755448244,-480.0,0.00022191,3]
[380423682,1755755448253,-480.0,0.00022191,3]
[380423684,1755755448262,-480.0,0.00022191,3]
[380423686,1755755448271,-151.0,0.00022191,7]
[380423688,1755755448280,-151.0,0.00022191,7]
[380423690,1755755448289,-480.0,0.00022191,3]
[380423692,1755755448299,-480.0,0.00022191,3]
[380423694,1755755448308,-151.0,0.00022191,7]
[380423696,1755755448318,-480.0,0.00022191,3]
[380423698,1755755448327,-482.24031492,0.00022191,3]
[380423700,1755755448336,-480.0,0.00022191,3]